Cogmind - Beta 12 @@@ ROGUE MODE // 2023.10.29 @ 01:48:55 Player: gallo Result: Destroyed by G-47 Trooper with Particle Gun Performance ------------- Evolutions (2) 1000 Regions Visited (4) 800 Robots Destroyed (28) 140 Value Destroyed (752) 752 Prototype IDs (3) 60 Alien Tech Used (0) 0 Bonus (0) 0 TOTAL SCORE: 2752 Bonus ------- None Cogmind --------- Core Integrity 0/550 Matter 300/300 Energy 99/100 System Corruption 0% Temperature Cool (9) Movement Core (100) Ox1 Location -8/Materials Parts ------- > --- POWER (2) -------- (None) > --- PROPULSION (3) --- (None) > --- UTILITY (3) ------ Small Storage Unit Improved Terrain Scan Processor > --- WEAPON (3) ------- (None) > --- INVENTORY (8) ---- Light Ion Engine Light Treads Light Treads Heat Sink High-capacity Matter Pod (200) Visual Processing Unit Terrain Scanner Peak State ------------ > --- POWER ------------ Ion Engine Light Ion Engine > --- PROPULSION ------- Aluminum Leg Aluminum Leg > --- UTILITY ---------- Heat Sink Hardened Medium Armor Plating > --- WEAPON ----------- Advanced Beam Rifle Advanced Beam Rifle Particle Cannon > --- INVENTORY -------- Small Storage Unit High-capacity Matter Pod Visual Processing Unit Terrain Scanner [Rating: 18] Favorites ----------- Power Light Ion Engine Engine Light Ion Engine Propulsion Aluminum Leg Treads Light Treads Leg Aluminum Leg Hover Unit Improved Hover Unit Utility Small Storage Unit Device Heat Sink Storage Small Storage Unit Processor Improved Terrain Scan Processor Protection Hardened Medium Armor Plating Weapon Advanced Beam Rifle Energy Gun Advanced Beam Rifle Energy Cannon Particle Cannon Ballistic Gun Assault Rifle Special Melee Weapon Datajack Build | -11 -10 -10 -9 -8 ------- Run | Jun Mat Min Mat Mat Slots Evolved 4 | . . . 2 2 Power 1 | . . . 1 . Propulsion 1 | . . . . 1 Utility 1 | . . . . 1 Weapon 1 | . . . 1 . Parts Attached 32 | 6 8 . 14 4 Power 4 | 1 1 . 2 . Engine 4 | 1 1 . 2 . Core . | . . . . . Reactor . | . . . . . Propulsion 9 | 2 1 . 4 2 Treads 2 | . . . 2 . Leg 6 | 2 1 . 2 1 Wheel . | . . . . . Hover 1 | . . . . 1 Flight . | . . . . . Utility 7 | 1 2 . 3 1 Device 2 | . 1 . 1 . Storage 3 | 1 1 . 1 . Processor 1 | . . . . 1 Hackware . | . . . . . Protection 1 | . . . 1 . Artifact . | . . . . . Weapon 12 | 2 4 . 5 1 Energy Gun 6 | 2 1 . 2 1 Energy Cannon 2 | . . . 2 . Ballistic Gun 2 | . 1 . 1 . Ballistic Cannon . | . . . . . Launcher . | . . . . . Special Weapon . | . . . . . Impact Weapon . | . . . . . Slashing Weapon . | . . . . . Piercing Weapon . | . . . . . Special Melee Weapon 2 | . 2 . . . Unidentified Prototypes 1 | . . . 1 . Parts Lost 13 | . 2 . 4 7 Power 2 | . . . 2 . Propulsion 5 | . . . 1 4 Utility 2 | . 1 . . 1 Weapon 4 | . 1 . 1 2 Highest Loss Streak 3 | . 1 . 2 3 To Critical Strikes . | . . . . . Average Slot Usage (%) 81 | . 87 85 88 47 Engine 12 | . 14 14 14 . Treads 2 | . . . 4 . Leg 18 | . 28 28 15 16 Device 4 | . 4 . 6 . Storage 8 | . 16 28 6 9 Processor 1 | . . . . 7 Protection 6 | . . . 9 3 Energy Gun 15 | . 17 14 16 10 Energy Cannon 8 | . . . 12 . Special Melee Weapon 1 | . 5 . . . Naked Turns . | . . . . . Heaviest Build 27 | 14 14 14 27 17 Greatest Support 40 | 20 20 20 40 30 Greatest Overweight (x) 2 | 2 . . 2 1 Average Overweight (x) . | . . . . . Largest Inventory Capacity 8 | 8 8 8 8 8 Average Capacity 7 | 6 8 8 6 8 Most Carried 8 | 1 6 6 8 7 Average Carried 4 | . 2 6 4 6 Final Capacity 8 | 8 8 8 8 8 Final Carried 7 | 1 6 6 7 7 Class Distribution -------------------- 75% | Mutant 23% | Scavenger-Mutant Dominant Class ---------------- Mutant | -10/Materials Mutant | -10/Mines Mutant | -9/Materials Mutant | -8/Materials Resources | -11 -10 -10 -9 -8 ----------- Run | Jun Mat Min Mat Mat Matter Collected 718 | 200 135 . 381 2 Remotely . | . . . . . Salvage Created 920 | . 158 . 586 176 Parts 78 | . 15 . 51 12 Haulers Intercepted . | . . . . . Recyclers Shooed 1 | . . . 1 . Parts Field Recycled . | . . . . . Retrieved Matter . | . . . . . Parts Self-Destructed . | . . . . . Prevented . | . . . . . Kills | -11 -10 -10 -9 -8 ------- Run | Jun Mat Min Mat Mat Combat Hostiles Destroyed 22 | . 5 . 14 3 Melee 1 | . . . 1 . Guns 15 | . 5 . 8 2 Cannons 5 | . . . 5 . Classes Destroyed 7 | . 3 . 3 1 Worker 1 | . . . . 1 Builder 2 | . . . 2 . Watcher 3 | . 1 . 2 . Swarmer 7 | . 3 . 4 . Grunt 11 | . 2 . 6 3 Brawler 1 | . . . 1 . Sentry 3 | . . . 3 . Best Kill Streak 6 | . 4 . 6 4 Combat Bots Only 6 | . 4 . 6 3 Max Kills in Single Turn 2 | . 1 . 2 1 Gunslinging . | . . . . . Exploded . | . . . . . Melee 1 | . . . 1 . Uniques/NPCs Destroyed . | . . . . . Combat | -11 -10 -10 -9 -8 -------- Run | Jun Mat Min Mat Mat Damage Taken 2679 | . 314 . 1223 1142 Core 843 | . 52 . 240 551 Absorbed by Shields . | . . . . . Core Remaining (%) 73 | 100 . 79 40 . Volleys Fired 125 | . 26 . 86 13 Largest 3 | . 2 . 3 2 Hottest 190 | . 60 . 190 101 Shots Fired 183 | . 28 . 131 24 Gun 117 | . 28 . 65 24 Cannon 66 | . . . 66 . Launcher . | . . . . . Special . | . . . . . Kinetic 10 | . 2 . 8 . Thermal 149 | . 10 . 115 24 Explosive . | . . . . . Electromagnetic 24 | . 16 . 8 . Robot Hit Streak 10 | . 10 . 10 3 Robot Miss Streak 6 | . 3 . 6 5 Penetration Max . | . . . . . Secondary Targets 1 | . . . . 1 Max Gunslinging Chain 1 | . . . . 1 Shots Hit Robots 74 | . 21 . 42 11 Core Hits 39 | . 8 . 20 11 Critical Kills . | . . . . . Critical Parts Destroyed . | . . . . . Critical Strikes 4 | . 1 . 2 1 Burn 3 | . . . 2 1 Corrupt 1 | . 1 . . . Melee Attacks 9 | . 9 . . . Impact . | . . . . . Slashing . | . . . . . Piercing . | . . . . . Sneak Attacks 4 | . 4 . . . Combat Hostiles . | . . . . . Follow-up Attacks . | . . . . . Damage Inflicted 1368 | . 249 . 912 207 Guns 873 | . 244 . 453 176 Cannons 427 | . . . 427 . Explosions . | . . . . . Melee . | . . . . . Ramming 68 | . 5 . 32 31 Kinetic 52 | . 15 . 37 . Thermal 1031 | . 112 . 743 176 Explosive . | . . . . . Electromagnetic 217 | . 117 . 100 . Impact . | . . . . . Slashing . | . . . . . Piercing . | . . . . . Highest Corruption 1 | . 1 1 . . Average Corruption 1 | . 1 1 . . Corruption Purged . | . . . . . Corruption Blocked . | . . . . . Effects 3 | . 3 . . . Message Errors 1 | . 1 . . . Matter Fused 1 | . 1 . . . Energy Discharges 1 | . 1 . . . Overload Shots . | . . . . . Overflow Damage 1 | . . . 1 . Projectiles 1 | . . . 1 . Explosions . | . . . . . Melee . | . . . . . Knockbacks . | . . . . . Impact . | . . . . . Kinetic . | . . . . . Secondary . | . . . . . Self-Inflicted Damage 14 | . . . . 14 Shots . | . . . . . Rammed 18 | . . . 10 8 Targets Rammed 33 | . 5 . 16 12 Kicked 14 | . 5 . 5 4 Crushed 1 | . . . 1 . Highest Temperature 660 | . 48 . 660 157 Average Temperature 118 | . 17 . 132 72 Received Heat Transfer 948 | . 132 . 276 540 Effects 16 | . . . 16 . Shutdowns 2 | . . . 2 . Energy Bleed 2 | . . . 2 . Interference 4 | . . . 4 . Matter Decay 1 | . . . 1 . Short Circuit 2 | . . . 2 . Damage (minor) 3 | . . . 3 . Damage (major) 1 | . . . 1 . Damage (core) 1 | . . . 1 . Siege Activations . | . . . . . Robots Corrupted . | . . . . . Combat Hostiles . | . . . . . Parts Fried . | . . . . . Impact Corruptions . | . . . . . Robots Melted 1 | . . . . 1 Combat Hostiles 1 | . . . . 1 Parts Melted 5 | . 1 . 4 . Heat Transferred 2358 | . 333 . 1591 434 Parts Sabotaged . | . . . . . Parts Stolen . | . . . . . Parts Stripped . | . . . . . Power Chain Reactions . | . . . . . Missiles Intercepted . | . . . . . Alert | -11 -10 -10 -9 -8 ------- Run | Jun Mat Min Mat Mat Peak Influence 212 | . 212 16 165 155 Initial 65 | . . 16 5 65 Average 70 | . 75 16 66 100 Maximum Alert Level 1 | . 1 . . . Low Security (%) 96 | 100 82 100 100 100 Level 1 3 | . 17 . . . Level 2 . | . . . . . Level 3 . | . . . . . Level 4 . | . . . . . Level 5 . | . . . . . High Security . | . . . . . Max Security . | . . . . . Squads Dispatched 5 | . 2 . 1 2 Investigation 2 | . 1 . 1 . Extermination . | . . . . . Reinforcement 1 | . 1 . . . Assault . | . . . . . Garrison 2 | . . . . 2 Intercept . | . . . . . Searches Triggered . | . . . . . Construction Impeded . | . . . . . Haulers Reinforced . | . . . . . Active Scanning Responses . | . . . . . Cargo Convoy Interrupts . | . . . . . Stealth | -11 -10 -10 -9 -8 --------- Run | Jun Mat Min Mat Mat Distress Signals 4 | . 1 . 2 1 Communications Jammed . | . . . . . Distress Signals . | . . . . . Times Spotted 58 | . 13 . 26 19 Peak Tracking Total 9 | . 4 . 9 9 Tactical Retreats 9 | . 4 . 4 1 Traps | -11 -10 -10 -9 -8 ------- Run | Jun Mat Min Mat Mat Traps Triggered 1 | . . . 1 . Indirectly . | . . . . . Trap Hack Attempts . | . . . . . Triggered . | . . . . . Disarmed . | . . . . . Reprogrammed . | . . . . . Reused . | . . . . . Traps Extracted . | . . . . . Installed . | . . . . . Triggered . | . . . . . Machines | -11 -10 -10 -9 -8 ---------- Run | Jun Mat Min Mat Mat Machines Disabled 1 | . . . 1 . Max in Single Turn 1 | . . . 1 . Machines Repaired . | . . . . . Machines Sabotaged . | . . . . . Overloaded Fab Kills . | . . . . . Hacking | -11 -10 -10 -9 -8 --------- Run | Jun Mat Min Mat Mat Machines Accessed 3 | . 2 . 1 . Terminals 3 | . 2 . 1 . Fabricators . | . . . . . Repair Stations . | . . . . . Recycling Units . | . . . . . Scanalyzers . | . . . . . Garrison Access . | . . . . . Total Hacks 9 | . 7 . 2 . Successful 7 | . 6 . 1 . Failed 2 | . 1 . 1 . Catastrophic . | . . . . . Database Lockouts . | . . . . . Manual 1 | . 1 . . . Terminals 9 | . 7 . 2 . Fabricators . | . . . . . Repair Stations . | . . . . . Recycling Units . | . . . . . Scanalyzers . | . . . . . Garrison Access . | . . . . . Terminal Hacks 7 | . 6 . 1 . Record 3 | . 3 . . . Prototype ID Bank 1 | . 1 . . . Alert Level 2 | . 1 . 1 . Hauler Manifests 1 | . 1 . . . Fabricator Hacks . | . . . . . Repair Station Hacks . | . . . . . Recycling Unit Hacks . | . . . . . Scanalyzer . | . . . . . Garrison Access Hacks . | . . . . . Unauthorized Hacks . | . . . . . Terminals . | . . . . . Fabricators . | . . . . . Repair Stations . | . . . . . Recycling Units . | . . . . . Scanalyzers . | . . . . . Garrison Access . | . . . . . Data Cores Recovered . | . . . . . Used . | . . . . . Hacking Detections 2 | . 1 . 1 . Full Trace Events 1 | . 1 . . . Feedback Events 1 | . 1 . . . Corruption 1 | . 1 . . . Feedback Blocked . | . . . . . Robot Schematics Acquired . | . . . . . Robots Built . | . . . . . Authchips . | . . . . . Time . | . . . . . Total Robot Build Rating . | . . . . . Part Schematics Acquired . | . . . . . Parts Built . | . . . . . Authchips . | . . . . . Time . | . . . . . Total Part Build Rating . | . . . . . Parts Repaired . | . . . . . Time . | . . . . . Parts Recycled . | . . . . . Recycled Matter . | . . . . . Retrieved Matter . | . . . . . Retrieved Components . | . . . . . Parts Scanalyzed . | . . . . . Part Schematics Acquired . | . . . . . Parts Damaged . | . . . . . Bothacking | -11 -10 -10 -9 -8 ------------ Run | Jun Mat Min Mat Mat Used RIF Installer . | . . . . . Robots Hacked 3 | . 3 . . . Non-combat 2 | . 2 . . . Combat 1 | . 1 . . . Robot Hacks Applied 4 | . 4 . . . parse_system 2 | . 2 . . . no_distress 2 | . 2 . . . Relay Couplers Released . | . . . . . Fabnet Peak Effective % . | . . . . . Robots Rewired . | . . . . . Allies Hacked . | . . . . . Hacks Repelled . | . . . . . Allies | -11 -10 -10 -9 -8 -------- Run | Jun Mat Min Mat Mat Total Allies . | . . . . . Largest Group . | . . . . . Highest-Rated Group . | . . . . . Highest-Rated Ally . | . . . . . Total Orders . | . . . . . Ally Attacks . | . . . . . Total Damage . | . . . . . Kills . | . . . . . Allies Corrupted . | . . . . . Allies Melted . | . . . . . Intel | -11 -10 -10 -9 -8 ------- Run | Jun Mat Min Mat Mat Robot Analysis Total . | . . . . . Derelict Logs Recovered . | . . . . . Drone Launches . | . . . . . Drone Recoveries . | . . . . . Exploration | -11 -10 -10 -9 -8 ------------- Run | Jun Mat Min Mat Mat Turns Passed 2212 | 88 436 12 1341 335 Spaces Moved 1226 | 99 267 11 607 242 Core 114 | 68 . . . 46 Treads 148 | . . . 148 . Legs 959 | 31 267 11 459 191 Wheels . | . . . . . Hover 5 | . . . . 5 Flight . | . . . . . Fastest Speed 50 | 50 120 120 120 60 Average Speed 143 | 80 120 120 175 114 Slowest Speed 260 | 150 120 120 260 120 Overloaded Moves . | . . . . . Propulsion Burnouts . | . . . . . Robots Hopped . | . . . . . Cave-ins Triggered . | . . . . . Exploration Rate (%) 18 | 4 37 6 31 16 Regions Visited 4 Branch Regions 1 Pre-discovered Areas . | . . . . . Known Exits Taken . | . . . . . Unknown Exits Taken 4 | 1 1 1 1 . Scrap Searched . | . . . . . Spaces Dug . | . . . . . Terrain Destroyed . | . . . . . Melee . | . . . . . Projectile . | . . . . . AOE . | . . . . . Terrain Rammed . | . . . . . Walls Destroyed . | . . . . . Machines Disabled . | . . . . . Actions | -11 -10 -10 -9 -8 --------- Run | Jun Mat Min Mat Mat Total 1479 | 105 346 10 745 273 Wait 27 | . 27 . . . Move 1222 | 98 266 10 606 242 Hop . | . . . . . Pick Up 18 | 1 4 . 12 1 Fast Attach 14 | 6 2 . 3 3 Attach 9 | . 1 . 7 1 Detach 2 | . 1 . 1 . Swap 9 | . 5 . 4 . Drop 11 | . . . 10 1 Fire 125 | . 26 . 86 13 Melee 9 | . 9 . . . Ram 8 | . . . . 8 Kick 14 | . 5 . 5 4 Crush 11 | . . . 11 . Escape Stasis . | . . . . . Rewire . | . . . . . Trap . | . . . . . Miscellaneous . | . . . . . Route ------- -11/Junkyard -10/Materials -10/Mines -9/Materials -8/Materials History --------- Turn | Location | Event 6 | -11/Junkyard | Discovered new exit (range 13) 89 | -11/Junkyard | Entered Materials 304 | -10/Materials | Build established: Mutant 508 | -10/Materials | Discovered new exit (range 12) 525 | -10/Materials | Entered Mines 525 | -10/Mines | Discovered new exit (range 8) 537 | -10/Mines | Entered Materials 537 | -9/Materials | Evolved 2 slots: Power x1, Weapon x1 1035 | -9/Materials | Build established: Scavenger-Mutant 1582 | -9/Materials | Build established: Mutant 1719 | -9/Materials | Core integrity fell below 50% 1873 | -9/Materials | Discovered new exit (range 3) 1878 | -9/Materials | Entered another Materials area 1878 | -8/Materials | Evolved 2 slots: Propulsion x1, Utility x1 2032 | -8/Materials | Garrison activated, responded to threat 2107 | -8/Materials | Lost 3 parts (1u2w) 2168 | -8/Materials | Core integrity fell below 50% 2186 | -8/Materials | Lost 3 parts (3n) 2197 | -8/Materials | Core integrity fell below 20% 2213 | -8/Materials | Destroyed by G-47 Trooper with Particle Gun Last Messages --------------- 02130_ Aluminum Leg destroyed. 02131_ Kicked G-47 Trooper out of the way. 02138_ Kicked M-13 Machinist. 02142_ Aluminum Leg destroyed. 02155_ Critical hit (Burn: +37). 02165_ M-13 Machinist repairs G-47 Trooper. 02166_ Critical hit (Burn: +37). 02170_ S-10 Pest destroyed. 02195_ Slammed into S-10 Pest. 02195_ Destabilizing: System interference. 02195_ Imp. Terrain Scan Processor temporarily disabled. 02196_ Slammed into S-10 Pest. 02196_ Destabilizing: Core damaged (-22). 02197_ Slammed into S-10 Pest. 02202_ Acquired Imp. Hover Unit. 02207_ Slammed into G-47 Trooper. 02209_ Critical hit (Burn: +37). 02210_ Acquired 2 matter. 02210_ Slammed into G-47 Trooper. 02211_ Imp. Hover Unit destroyed. Map ----- +----------------------------------------------------+ | | | | | | | | | | | | | | | | | | | | | | | | | ??????????????????????????????????????????? | | ??????????????????????????????????????????? | | ??????????????????????????????????????????? | | ??????????????????????????????????????????? | | ??????????????????????????????????????????? | | ???????????########???????????????????????? | | ???????????# #???????????????????????? | | ???????????# === #???????????????????????? | | ???????????# == #???????????????????????? | | ???????????# = #???????????????????????? | | ???????????# #"??????????????????????? | | ???????????# =#? ?????????????????????? | | ???????????####s####+###??????????????????? | | ????????????# %g% @ #??????###########?# | | ????????????# %g g #???? # #?# | | ??????????#####+##### #?? # """ #?# | | ??????????# #??# Y# # G" #?# | | ??????????# "#??# + """ # """ #?# | | ??????????# """ T#??# # """ # #?# | | ??????????# """ "#??# #??"" # """ #?# | | ??????????# """ #??# #????### """ #?# | | ??????????# !#??# #??????# """ #?? | | ??????????########??# ############+####### | | ????????????????????# = | | ????????????????????# [%* | | ????????????????????# ############# ##### | | ????????????????????# #???????????# #???? | | ????????????????????# #???????????# #???? | | ????????????????????# #???????????# #???? | | ????????????????????# #???????????# #???? | | ????????????????????# #???????????# #???? | | ????????????????????# ????????????# #???? | | ????????????????????# ????????????# #???? | | ????????????????????# ????????????# #???? | | ????????????????????# ????????##### ##### | | ????????????????????? ????????# * | | ????????????????????? ????????# % %! =% | | ????????????????????? ????????# %= | +----------------------------------------------------+ Best States ------------- Heat Dissipation 38 Energy Generation 15 Energy Capacity 275 Matter Stores 314 Matter Capacity 500 Sight Range 16 Terrain Scan Density 110 Armor Coverage 225 Evasion (%) 55 Recoil Reduction 2 Item Schematics ----------------- None Robot Schematics ------------------ None Fabricated ------------ Nothing Alien Tech Used ----------------- None Achievements -------------- Fist Fight It's Just You Troublemaker Challenges ------------ None Game ------ Seed SpreadTargetMallet Manual? 0 Play Time 00:22:30 Cumulative 2.1 hours Start 2023.10.29 @ 01:28:51 End 2023.10.29 @ 01:48:55 Sessions 1 Manual Loads 0 Difficulty Rogue Special Mode None Game No. 5 Rogue 5 Adventurer 0 Explorer 0 Win Type - Total 0 Types 0/0/0/0/0/0/0/0/0 Lore% 0 Gallery% 6 Achievement% 5 Wizard Run 0 Options --------- ASCII 0 Keyboard 0 Movement Arrows Keybinds 0 Fullscreen 1 Font 18/Smallcaps Map View 76x50 Tactical HUD 1 Map Filters NONE Filters NONE Steam 1 RUN: ad7b6487-b682-4f63-93cc-08b3e6565c0d